[Event "EIWCC 2017"]
[Site "Riga"]
[Date "2017.04.14"]
[Round "4"]
[White "Sazonova, Anastasia"]
[Black "Khomeriki, Nino"]
[Result "1/2-1/2"]
[ECO "D38"]
[WhiteElo "2143"]
[BlackElo "2308"]
[Annotator "NA"]
[PlyCount "120"]
[EventDate "2017.??.??"]
[EventType "swiss"]
[EventCountry "LAT"]
[SourceTitle "playchess.com"]
[Source "ChessBase"]
[SourceQuality "1"]
[TimeControl "40/5400+30:1800+30"]

1. d4 {[%emt 0:00:00]} Nf6 {[%emt 0:00:25]} 2. c4 {[%emt 0:00:00]} e6 {[%emt 0:00:05]} 3. Nf3 {[%emt 0:00:14]} d5 {[%emt 0:00:27]} 4. Nc3 {[%emt 0:00:20]} Bb4 {[%emt 0:00:48]} 5. Qb3 {[%emt 0:00:31]} c5 {[%emt 0:00:19]} 6. dxc5 {[%emt 0:00:32]} Nc6 {[%emt 0:00:14]} 7. Bg5 {[%emt 0:00:47]} dxc4 {[%emt 0:04:36]} 8. Qxc4 {[%emt 0:00:52]} Qa5 {[%emt 0:00:18]} 9. Bxf6 {[%emt 0:00:32]} gxf6 {[%emt 0:00:06]} 10. Rc1 {[%emt 0:00:27]} Qxc5 {[%emt 0:00:22]} 11. Qh4 {[%emt 0:01:03]} Ke7 {[%emt 0:00:32]} 12. g3 {[%emt 0:00:52]} Bxc3+ {[%emt 0:02:14]} 13. bxc3 {[%emt 0:01:20]} b6 {[%emt 0:06:53]} 14. Bg2 {[%emt 0:00:25]} Ba6 {[%emt 0:01:13]} 15. Nd2 {[%emt 0:02:39]} Rac8 {[%emt 0:04:15]} 16. Ne4 {[%emt 0:01:26]} Qf5 {[%emt 0:05:33]} 17. g4 {[%emt 0:02:29]} Qg6 {[%emt 0:04:41]} 18. f4 {[%emt 0:01:41]} Rhg8 {[%emt 0:20:00]} 19. h3 {[%emt 0:14:18]} Nd4 {[%emt 0:05:00]} 20. Rd1 {[%emt 0:07:07]} Nxe2 {[%emt 0:11:38]} 21. Nxf6 {[%emt 0:06:07]} Nxf4 {[%emt 0:22:19]} 22. Nd5+ {[%emt 0:13:18]} Kf8 {[%emt 0:00:16]} 23. Qe7+ {[%emt 0:09:06]} Kg7 {[%emt 0:00:17]} 24. Nxf4 {[%emt 0:00:16]} Qh6 {[%emt 0:02:31]} 25. Nh5+ {[%emt 0:01:14]} Kh8 {[%emt 0:00:06]} 26. Qf6+ {[%emt 0:00:25]} Qxf6 {[%emt 0:00:06]} 27. Nxf6 {[%emt 0:00:03]} Rg5 {[%emt 0:00:07]} 28. Kf2 {[%emt 0:07:16]} Kg7 {[%emt 0:01:03]} 29. Ne4 {[%emt 0:03:02]} Ra5 {[%emt 0:00:07]} 30. Rd2 {[%emt 0:01:30]} f5 {[%emt 0:00:13]} 31. gxf5 {[%emt 0:02:42]} exf5 {[%emt 0:00:08]} 32. Ng3 {[%emt 0:00:44]} Rxc3 {[%emt 0:00:13]} 33. Bd5 {[%emt 0:03:24]} Kf6 {[%emt 0:02:50]} 34. Re1 {[%emt 0:03:18]} Rd3 {[%emt 0:01:14]} 35. Rxd3 {[%emt 0:03:11]} Bxd3 {[%emt 0:00:02]} 36. Bb3 {[%emt 0:01:17]} Rc5 {[%emt 0:00:54]} 37. Rd1 {[%emt 0:02:49]} Bb5 {[%emt 0:02:02]} 38. Rd5 {[%emt 0:04:51]} Rxd5 {[%emt 0:01:28]} 39. Bxd5 {[%emt 0:00:01]} Ke5 {[%emt 0:00:35]} 40. Bg8 {[%emt 0:00:00]} h6 {[%emt 0:00:07]} 41. Ne2 {[%emt 0:03:24]} f4 {[%emt 0:02:32]} 42. Bf7 {[%emt 0:03:11]} Bc6 {[%emt 0:02:36]} 43. Bh5 {[%emt 0:04:46]} b5 {[%emt 0:00:33]} 44. Bf3 {[%emt 0:03:26]} Bd7 {[%emt 0:00:15]} 45. h4 {[%emt 0:01:20]} a5 {[%emt 0:01:22]} 46. Nc1 {[%emt 0:04:06]} a4 {[%emt 0:07:06]} 47. Nd3+ {[%emt 0:06:39]} Kd4 {[%emt 0:00:52]} 48. Nxf4 {[%emt 0:00:38]} b4 {[%emt 0:01:39]} 49. Bd5 {[%emt 0:00:42]} Bg4 {[%emt 0:01:23]} 50. Bf7 {[%emt 0:02:36]} Bf5 {[%emt 0:05:04]} 51. Ke2 {[%emt 0:03:19]} b3 {[%emt 0:06:56]} 52. Bxb3 {[%emt 0:07:45]} axb3 {[%emt 0:00:12]} 53. axb3 {[%emt 0:00:01]} Kc3 {[%emt 0:06:25]} 54. Ke3 {[%emt 0:00:15]} Kxb3 {[%emt 0:00:05]} 55. Kd4 {[%emt 0:00:12]} Bg4 {[%emt 0:00:05]} 56. Ke5 {[%emt 0:00:33]} Kc4 {[%emt 0:00:08]} 57. Kf6 {[%emt 0:01:18]} Kd4 {[%emt 0:00:11]} 58. Kg6 {[%emt 0:00:40]} Ke4 {[%emt 0:00:26]} 59. Nh5 {[%emt 0:00:50]} Bxh5+ {[%emt 0:00:14]} 60. Kxh5 {[%emt 0:00:04]} Kf5 {[%emt 0:00:04]} 1/2-1/2

[Event "EIWCC 2017"]
[Site "Riga"]
[Date "2017.04.14"]
[Round "4"]
[White "Gueci, Tea"]
[Black "Lazarne Vajda, Szidonia"]
[Result "0-1"]
[ECO "C77"]
[WhiteElo "2132"]
[BlackElo "2355"]
[Annotator "NA"]
[PlyCount "150"]
[EventDate "2017.??.??"]
[EventType "swiss"]
[EventCountry "LAT"]
[SourceTitle "playchess.com"]
[Source "ChessBase"]
[SourceQuality "1"]
[TimeControl "40/5400+30:1800+30"]

1. e4 {[%emt 0:00:00]} e5 {[%emt 0:00:24]} 2. Nf3 {[%emt 0:00:00]} Nc6 {[%emt 0:00:11]} 3. Bb5 {[%emt 0:00:00]} a6 {[%emt 0:00:25]} 4. Ba4 {[%emt 0:00:00]} Nf6 {[%emt 0:00:30]} 5. Qe2 {[%emt 0:00:00]} Bd6 {[%emt 0:00:59]} 6. c3 {[%emt 0:00:29]} O-O {[%emt 0:00:32]} 7. O-O {[%emt 0:00:28]} Re8 {[%emt 0:00:31]} 8. d3 {[%emt 0:02:11]} h6 {[%emt 0:01:33]} 9. Re1 {[%emt 0:01:50]} Bf8 {[%emt 0:00:47]} 10. Nbd2 {[%emt 0:01:45]} b5 {[%emt 0:02:19]} 11. Bc2 {[%emt 0:02:33]} d5 {[%emt 0:03:07]} 12. Nf1 {[%emt 0:03:02]} d4 {[%emt 0:09:57]} 13. h3 {[%emt 0:05:53]} Be6 {[%emt 0:05:44]} 14. Ng3 {[%emt 0:04:57]} g6 {[%emt 0:04:40]} 15. Bd2 {[%emt 0:05:08]} a5 {[%emt 0:09:20]} 16. Red1 {[%emt 0:21:02]} a4 {[%emt 0:03:34]} 17. a3 {[%emt 0:03:17]} Kh7 {[%emt 0:03:08]} 18. cxd4 {[%emt 0:02:37]} Nxd4 {[%emt 0:01:28]} 19. Nxd4 {[%emt 0:00:08]} exd4 {[%emt 0:01:41]} 20. f4 {[%emt 0:01:58]} c5 {[%emt 0:02:34]} 21. Rf1 {[%emt 0:05:27]} Qc8 {[%emt 0:07:49]} 22. Qf2 {[%emt 0:02:36]} Ng8 {[%emt 0:03:33]} 23. h4 {[%emt 0:09:57]} Bg4 {[%emt 0:07:40]} 24. Bd1 {[%emt 0:06:51]} Bg7 {[%emt 0:04:12]} 25. h5 {[%emt 0:02:18]} Bxd1 {[%emt 0:06:55]} 26. hxg6+ {[%emt 0:00:24]} fxg6 {[%emt 0:00:10]} 27. Raxd1 {[%emt 0:00:02]} Qg4 {[%emt 0:01:07]} 28. Rc1 {[%emt 0:04:10]} Rac8 {[%emt 0:00:20]} 29. e5 {[%emt 0:03:19]} Rf8 {[%emt 0:03:07]} 30. Qe1 {[%emt 0:01:07]} c4 {[%emt 0:00:30]} 31. Rf3 {[%emt 0:00:44]} Ne7 {[%emt 0:03:31]} 32. Bb4 {[%emt 0:00:23]} Rfe8 {[%emt 0:02:41]} 33. Qe4 {[%emt 0:02:28]} cxd3 {[%emt 0:01:58]} 34. Rxc8 {[%emt 0:00:51]} Rxc8 {[%emt 0:00:16]} 35. Qxd3 {[%emt 0:00:41]} Rc1+ {[%emt 0:02:08]} 36. Nf1 {[%emt 0:00:14]} Nf5 {[%emt 0:00:29]} 37. Bd2 {[%emt 0:00:32]} Rd1 {[%emt 0:02:32]} 38. Qxb5 {[%emt 0:01:46]} Rb1 {[%emt 0:01:49]} 39. Qxa4 {[%emt 0:06:50]} Rxb2 {[%emt 0:00:08]} 40. Qc6 {[%emt 0:00:00]} Rb1 {[%emt 0:04:34]} 41. Qe4 {[%emt 0:06:22]} Ra1 {[%emt 0:02:28]} 42. Qa8 {[%emt 0:12:09]} Ng3 {[%emt 0:05:55]} 43. Qd8 {[%emt 0:05:38]} Nxf1 {[%emt 0:05:52]} 44. Rxf1 {[%emt 0:00:11]} Rxf1+ {[%emt 0:00:58]} 45. Kxf1 {[%emt 0:00:02]} Qd1+ {[%emt 0:00:11]} 46. Be1 {[%emt 0:01:14]} d3 {[%emt 0:00:49]} 47. Qa5 {[%emt 0:03:27]} Qe2+ {[%emt 0:00:09]} 48. Kg1 {[%emt 0:00:01]} Qe3+ {[%emt 0:00:11]} 49. Kh2 {[%emt 0:05:06]} Qxf4+ {[%emt 0:00:42]} 50. g3 {[%emt 0:00:47]} Qe4 {[%emt 0:03:21]} 51. Bc3 {[%emt 0:00:14]} Qe2+ {[%emt 0:01:49]} 52. Kh3 {[%emt 0:00:38]} h5 {[%emt 0:01:39]} 53. Qb4 {[%emt 0:01:03]} g5 {[%emt 0:01:14]} 54. Qb7 {[%emt 0:01:16]} d2 {[%emt 0:02:17]} 55. Bxd2 {[%emt 0:00:21]} Qxd2 {[%emt 0:02:37]} 56. Qe4+ {[%emt 0:00:22]} Kg8 {[%emt 0:00:09]} 57. Qc4+ {[%emt 0:00:16]} Kf8 {[%emt 0:00:10]} 58. Qc8+ {[%emt 0:01:15]} Ke7 {[%emt 0:00:22]} 59. Qc5+ {[%emt 0:00:04]} Ke8 {[%emt 0:00:10]} 60. Qc8+ {[%emt 0:00:21]} Qd8 {[%emt 0:00:32]} 61. Qe6+ {[%emt 0:00:08]} Kf8 {[%emt 0:00:54]} 62. Qf5+ {[%emt 0:00:34]} Kg8 {[%emt 0:00:31]} 63. g4 {[%emt 0:01:16]} h4 {[%emt 0:01:44]} 64. e6 {[%emt 0:00:17]} Qf6 {[%emt 0:01:37]} 65. Qd5 {[%emt 0:00:51]} Qc3+ {[%emt 0:02:49]} 66. Kg2 {[%emt 0:00:13]} Qg3+ {[%emt 0:00:33]} 67. Kf1 {[%emt 0:00:18]} Qf4+ {[%emt 0:00:10]} 68. Kg2 {[%emt 0:00:35]} Qxg4+ {[%emt 0:00:16]} 69. Kh1 {[%emt 0:00:51]} Qh3+ {[%emt 0:00:38]} 70. Kg1 {[%emt 0:00:05]} Qe3+ {[%emt 0:00:12]} 71. Kh1 {[%emt 0:00:27]} Qe5 {[%emt 0:03:04]} 72. Qb3 {[%emt 0:01:03]} Qa1+ {[%emt 0:00:32]} 73. Kg2 {[%emt 0:00:12]} Qb2+ {[%emt 0:00:03]} 74. Qxb2 {[%emt 0:00:15]} Bxb2 {[%emt 0:00:04]} 75. a4 {[%emt 0:00:09]} Bc3 {[%emt 0:00:09]} 0-1

[Event "EIWCC 2017"]
[Site "Riga"]
[Date "2017.04.14"]
[Round "4"]
[White "Hapala, Elisabeth"]
[Black "Worek, Joanna"]
[Result "1-0"]
[ECO "B90"]
[WhiteElo "2091"]
[BlackElo "2330"]
[Annotator "NA"]
[PlyCount "104"]
[EventDate "2017.??.??"]
[EventType "swiss"]
[EventCountry "LAT"]
[SourceTitle "playchess.com"]
[Source "ChessBase"]
[SourceQuality "1"]
[TimeControl "40/5400+30:1800+30"]

1. e4 {[%emt 0:00:00]} c5 {[%emt 0:00:05]} 2. Nf3 {[%emt 0:00:00]} d6 {[%emt 0:00:05]} 3. d4 {[%emt 0:00:00]} cxd4 {[%emt 0:00:04]} 4. Nxd4 {[%emt 0:00:00]} Nf6 {[%emt 0:00:05]} 5. Nc3 {[%emt 0:00:00]} a6 {[%emt 0:00:03]} 6. Be3 {[%emt 0:00:00]} e5 {[%emt 0:00:06]} 7. Nb3 {[%emt 0:00:00]} Be6 {[%emt 0:00:18]} 8. f3 {[%emt 0:00:06]} Be7 {[%emt 0:00:05]} 9. Qd2 {[%emt 0:00:22]} O-O {[%emt 0:00:06]} 10. O-O-O {[%emt 0:00:16]} a5 {[%emt 0:00:10]} 11. a4 {[%emt 0:00:28]} Na6 {[%emt 0:00:05]} 12. g4 {[%emt 0:00:16]} Nb4 {[%emt 0:00:16]} 13. Kb1 {[%emt 0:00:19]} Rc8 {[%emt 0:00:15]} 14. g5 {[%emt 0:00:31]} Nh5 {[%emt 0:00:06]} 15. Rg1 {[%emt 0:00:20]} Kh8 {[%emt 0:00:07]} 16. Bb5 {[%emt 0:03:22]} Qc7 {[%emt 0:01:18]} 17. Qf2 {[%emt 0:06:27]} Nf4 {[%emt 0:17:54]} 18. Bb6 {[%emt 0:30:09]} Qb8 {[%emt 0:00:13]} 19. Qd2 {[%emt 0:06:49]} d5 {[%emt 0:15:51]} 20. exd5 {[%emt 0:10:03]} Nfxd5 {[%emt 0:12:47]} 21. Nxd5 {[%emt 0:01:00]} Bxd5 {[%emt 0:00:40]} 22. Bxa5 {[%emt 0:04:49]} Bxf3 {[%emt 0:10:55]} 23. Bxb4 {[%emt 0:08:58]} Rfd8 {[%emt 0:00:08]} 24. Bxe7 {[%emt 0:00:35]} Rxd2 {[%emt 0:02:40]} 25. Rxd2 {[%emt 0:00:06]} e4 {[%emt 0:00:39]} 26. Bd6 {[%emt 0:04:42]} Qa7 {[%emt 0:04:14]} 27. Bc5 {[%emt 0:00:31]} Qb8 {[%emt 0:08:42]} 28. Bd6 {[%emt 0:05:23]} Qa7 {[%emt 0:00:05]} 29. Bc5 {[%emt 0:00:04]} Qb8 {[%emt 0:02:16]} 30. Be3 {[%emt 0:00:26]} Qe5 {[%emt 0:01:56]} 31. Nd4 {[%emt 0:00:34]} Bh5 {[%emt 0:00:08]} 32. Rf1 {[%emt 0:02:45]} Bg6 {[%emt 0:03:27]} 33. Rfd1 {[%emt 0:00:20]} Rf8 {[%emt 0:01:39]} 34. Nb3 {[%emt 0:02:30]} Rg8 {[%emt 0:07:55]} 35. Rd8 {[%emt 0:01:52]} h6 {[%emt 0:00:33]} 36. gxh6 {[%emt 0:00:51]} Qxh2 {[%emt 0:01:20]} 37. hxg7+ {[%emt 0:02:57]} Kh7 {[%emt 0:03:01]} 38. R8d2 {[%emt 0:02:00]} Qh3 {[%emt 0:00:02]} 39. Bf4 {[%emt 0:04:15]} Kxg7 {[%emt 0:04:26]} 40. Be5+ {[%emt 0:00:00]} f6 {[%emt 0:00:06]} 41. Rd7+ {[%emt 0:03:44]} Kh6 {[%emt 0:01:53]} 42. Bf4+ {[%emt 0:02:02]} Kh5 {[%emt 0:00:40]} 43. Be2+ {[%emt 0:10:19]} Kh4 {[%emt 0:00:06]} 44. R7d2 {[%emt 0:01:12]} e3 {[%emt 0:06:35]} 45. Rd4 {[%emt 0:05:21]} Re8 {[%emt 0:00:20]} 46. Be5+ {[%emt 0:02:13]} Kg5 {[%emt 0:01:42]} 47. Rg1+ {[%emt 0:00:27]} Kh6 {[%emt 0:00:09]} 48. Bg4 {[%emt 0:08:08]} fxe5 {[%emt 0:01:48]} 49. Bxh3 {[%emt 0:00:10]} exd4 {[%emt 0:00:03]} 50. Nxd4 {[%emt 0:01:24]} e2 {[%emt 0:02:15]} 51. Re1 {[%emt 0:00:23]} Re4 {[%emt 0:00:10]} 52. Nxe2 {[%emt 0:01:27]} Rf4 1-0

[Event "EIWCC 2017"]
[Site "Riga"]
[Date "2017.04.14"]
[Round "4"]
[White "Beydullayeva, Govhar"]
[Black "Ozturk, Kubra"]
[Result "0-1"]
[ECO "A22"]
[WhiteElo "2054"]
[BlackElo "2261"]
[Annotator "NA"]
[PlyCount "54"]
[EventDate "2017.??.??"]
[EventType "swiss"]
[EventCountry "LAT"]
[SourceTitle "playchess.com"]
[Source "ChessBase"]
[SourceQuality "1"]
[TimeControl "40/5400+30:1800+30"]

1. c4 {[%emt 0:00:00]} Nf6 {[%emt 0:00:20]} 2. Nc3 {[%emt 0:00:00]} e5 {[%emt 0:08:57]} 3. g3 {[%emt 0:00:00]} d5 {[%emt 0:00:12]} 4. cxd5 {[%emt 0:00:00]} Nxd5 {[%emt 0:00:02]} 5. Bg2 {[%emt 0:00:21]} Nb6 {[%emt 0:00:04]} 6. d3 {[%emt 0:00:05]} Be7 {[%emt 0:00:50]} 7. Be3 {[%emt 0:00:11]} O-O {[%emt 0:00:52]} 8. Rc1 {[%emt 0:00:35]} f5 {[%emt 0:17:16]} 9. Nf3 {[%emt 0:02:05]} Nc6 {[%emt 0:02:41]} 10. O-O {[%emt 0:01:43]} Bf6 {[%emt 0:02:54]} 11. Bc5 {[%emt 0:17:37]} Re8 {[%emt 0:01:52]} 12. b4 {[%emt 0:01:04]} Be6 {[%emt 0:02:39]} 13. Nd2 {[%emt 0:04:47]} Nd5 {[%emt 0:11:56]} 14. Nxd5 {[%emt 0:11:40]} Bxd5 {[%emt 0:00:06]} 15. Bxd5+ {[%emt 0:09:14]} Qxd5 {[%emt 0:00:03]} 16. Qb3 {[%emt 0:01:49]} Qxb3 {[%emt 0:04:42]} 17. Nxb3 {[%emt 0:00:38]} b6 {[%emt 0:04:50]} 18. Bxb6 {[%emt 0:10:07]} axb6 {[%emt 0:00:48]} 19. Rxc6 {[%emt 0:00:03]} Rxa2 {[%emt 0:00:09]} 20. Rb1 {[%emt 0:07:03]} Rxe2 {[%emt 0:03:36]} 21. Rxc7 {[%emt 0:03:56]} e4 {[%emt 0:02:25]} 22. d4 {[%emt 0:07:12]} e3 {[%emt 0:02:41]} 23. fxe3 {[%emt 0:00:38]} R2xe3 {[%emt 0:01:26]} 24. Rc6 {[%emt 0:03:52]} Rd3 {[%emt 0:01:14]} 25. d5 {[%emt 0:08:51]} Ree3 {[%emt 0:03:29]} 26. Nc1 {[%emt 0:01:36]} Rxd5 {[%emt 0:01:09]} 27. Rxb6 {[%emt 0:00:28]} Bd4 {[%emt 0:01:00]} 0-1

[Event "EIWCC 2017"]
[Site "Riga"]
[Date "2017.04.15"]
[Round "5"]
[White "Szczepkowska, Karina"]
[Black "Kantane, Anna"]
[Result "1-0"]
[ECO "B24"]
[WhiteElo "2414"]
[BlackElo "2230"]
[Annotator "NA"]
[PlyCount "83"]
[EventDate "2017.??.??"]
[EventType "swiss"]
[EventCountry "LAT"]
[SourceTitle "playchess.com"]
[Source "ChessBase"]
[SourceQuality "1"]
[TimeControl "40/5400+30:1800+30"]

1. e4 {[%emt 0:00:00]} c5 {[%emt 0:00:06]} 2. Nc3 {[%emt 0:00:00]} Nc6 {[%emt 0:00:25]} 3. Bb5 {[%emt 0:00:00]} Nd4 {[%emt 0:08:01]} 4. Nf3 {[%emt 0:00:00]} g6 {[%emt 0:07:40]} 5. Bc4 {[%emt 0:00:21]} Bg7 {[%emt 0:00:29]} 6. Nxd4 {[%emt 0:00:26]} cxd4 {[%emt 0:00:07]} 7. Qf3 {[%emt 0:00:08]} e6 $11 {[%emt 0:10:07]} 8. Nb5 {[%emt 0:00:20] LiveBook: 56 Games} d6 {[%emt 0:03:13]} 9. Qa3 {[%emt 0:09:57]} Bf8 {[%emt 0:03:20]} 10. Nxd4 {[%emt 0:02:05]} Nf6 {[%emt 0:03:48]} 11. Qf3 {[%emt 0:11:36]} Bg7 {[%emt 0:05:47]} 12. Bb3 {[%emt 0:00:34]} O-O {[%emt 0:05:34]} 13. O-O {[%emt 0:00:31]} Nd7 {[%emt 0:03:57]} 14. c3 {[%emt 0:00:57]} b6 {[%emt 0:03:27]} 15. d3 {[%emt 0:02:31]} Bb7 {[%emt 0:00:17]} 16. Qh3 {[%emt 0:03:54]} Nc5 {[%emt 0:03:01]} 17. Bc2 {[%emt 0:02:13]} e5 {[%emt 0:00:57]} 18. Nf3 {[%emt 0:12:16]} Ne6 {[%emt 0:14:11]} 19. g3 {[%emt 0:05:46]} f5 {[%emt 0:05:35]} 20. Bb3 {[%emt 0:01:38]} d5 {[%emt 0:00:19]} 21. Re1 {[%emt 0:07:42]} Nc5 {[%emt 0:02:50]} 22. exf5 {[%emt 0:06:03]} Rxf5 {[%emt 0:06:30]} 23. g4 {[%emt 0:01:38]} Rf8 {[%emt 0:02:25]} 24. Nxe5 {[%emt 0:02:48]} Nxb3 {[%emt 0:01:33]} 25. axb3 {[%emt 0:00:11]} d4 {[%emt 0:01:16]} 26. c4 {[%emt 0:02:39]} Qd6 {[%emt 0:04:26]} 27. f4 {[%emt 0:02:37]} g5 {[%emt 0:01:42]} 28. Bd2 {[%emt 0:02:04]} gxf4 {[%emt 0:00:13]} 29. Nf3 {[%emt 0:00:13]} a5 {[%emt 0:02:00]} 30. Ng5 {[%emt 0:02:17]} Qg6 {[%emt 0:00:51]} 31. Ne6 {[%emt 0:01:24]} f3 {[%emt 0:00:37]} 32. Nxf8 {[%emt 0:01:59]} Rxf8 {[%emt 0:00:46]} 33. Rf1 {[%emt 0:02:07]} Qxd3 {[%emt 0:00:14]} 34. Rf2 {[%emt 0:00:07]} Re8 {[%emt 0:01:03]} 35. Raf1 {[%emt 0:03:55]} Re2 {[%emt 0:00:34]} 36. Qg3 {[%emt 0:01:40]} Be5 {[%emt 0:00:35]} 37. Bf4 {[%emt 0:01:19]} Rxf2 {[%emt 0:00:29]} 38. Rxf2 {[%emt 0:00:22]} Bxf4 {[%emt 0:00:30]} 39. Qxf4 {[%emt 0:00:13]} Qd1+ {[%emt 0:00:29]} 40. Rf1 {[%emt 0:00:00]} f2+ {[%emt 0:00:32]} 41. Kxf2 {[%emt 0:05:23]} Qc2+ {[%emt 0:00:14]} 42. Kg3 {[%emt 0:00:07]} 1-0

[Event "EIWCC 2017"]
[Site "Riga"]
[Date "2017.04.15"]
[Round "5"]
[White "Tsolakidou, Stavroula"]
[Black "Buksa, Nataliya"]
[Result "1-0"]
[ECO "B31"]
[WhiteElo "2395"]
[BlackElo "2314"]
[Annotator "NA"]
[PlyCount "67"]
[EventDate "2017.??.??"]
[EventType "swiss"]
[EventCountry "LAT"]
[SourceTitle "playchess.com"]
[Source "ChessBase"]
[SourceQuality "1"]
[TimeControl "40/5400+30:1800+30"]

1. e4 {[%emt 0:00:00]} c5 {[%emt 0:00:15]} 2. Nf3 {[%emt 0:00:00]} Nc6 {[%emt 0:00:15]} 3. Bb5 {[%emt 0:02:15]} g6 {[%emt 0:00:06]} 4. O-O {[%emt 0:00:25]} Bg7 {[%emt 0:00:04]} 5. c3 {[%emt 0:00:12]} Nf6 {[%emt 0:06:57]} 6. Re1 {[%emt 0:01:04]} O-O {[%emt 0:00:19]} 7. h3 {[%emt 0:00:12]} d5 {[%emt 0:14:48]} 8. e5 {[%emt 0:00:58]} Ne8 {[%emt 0:00:03]} 9. d4 {[%emt 0:01:33]} c4 {[%emt 0:07:00]} 10. Ba4 {[%emt 0:28:31]} Nc7 {[%emt 0:00:20]} 11. Bc2 {[%emt 0:00:42]} f6 {[%emt 0:08:51]} 12. exf6 {[%emt 0:11:25]} exf6 {[%emt 0:00:04]} 13. Nbd2 {[%emt 0:01:43]} b5 {[%emt 0:07:59]} 14. Nf1 {[%emt 0:01:45]} Be6 {[%emt 0:08:50]} 15. Bf4 {[%emt 0:02:39]} Bf7 {[%emt 0:01:44]} 16. Qd2 {[%emt 0:04:34]} Qd7 {[%emt 0:06:05]} 17. Ng3 {[%emt 0:07:16]} Rfe8 {[%emt 0:01:42]} 18. h4 {[%emt 0:02:02]} h5 {[%emt 0:01:47]} 19. Nh2 {[%emt 0:11:22]} Rxe1+ {[%emt 0:05:21]} 20. Rxe1 {[%emt 0:00:05]} Re8 {[%emt 0:00:01]} 21. Rxe8+ {[%emt 0:02:35]} Nxe8 {[%emt 0:00:02]} 22. Bh6 {[%emt 0:01:20]} Nd6 {[%emt 0:02:01]} 23. Bxg7 {[%emt 0:03:47]} Kxg7 {[%emt 0:00:02]} 24. Qf4 {[%emt 0:00:11]} Qe6 {[%emt 0:04:20]} 25. Nhf1 {[%emt 0:00:54]} Ne7 {[%emt 0:10:17]} 26. Ne3 {[%emt 0:00:18]} a5 {[%emt 0:00:28]} 27. Qf3 {[%emt 0:02:42]} Kh6 {[%emt 0:04:38]} 28. Ne2 {[%emt 0:02:17]} g5 {[%emt 0:00:15]} 29. Ng3 {[%emt 0:02:02]} b4 {[%emt 0:01:52]} 30. Kf1 {[%emt 0:03:29]} bxc3 {[%emt 0:01:13]} 31. bxc3 {[%emt 0:00:04]} g4 {[%emt 0:03:11]} 32. Qf4+ {[%emt 0:00:13]} Kg7 {[%emt 0:00:01]} 33. Qxd6 {[%emt 0:00:23]} Qxd6 {[%emt 0:00:48]} 34. Ngf5+ {[%emt 0:00:03]} 1-0

[Event "EIWCC 2017"]
[Site "Riga"]
[Date "2017.04.15"]
[Round "5"]
[White "Michna, Marta"]
[Black "Doluhanova, Evgeniya"]
[Result "1-0"]
[ECO "B25"]
[WhiteElo "2389"]
[BlackElo "2287"]
[Annotator "ChessBase"]
[PlyCount "127"]
[EventDate "2017.??.??"]
[EventType "swiss"]
[EventCountry "LAT"]
[SourceTitle "playchess.com"]
[Source "ChessBase"]
[SourceQuality "1"]
[TimeControl "40/5400+30:1800+30"]

1. e4 {[%emt 0:00:00]} c5 {[%emt 0:00:03]} 2. Nc3 {[%emt 0:00:02]} Nc6 {[%emt 0:00:59]} 3. g3 {[%emt 0:00:16]} g6 {[%emt 0:00:17]} 4. Bg2 {[%emt 0:00:16]} Bg7 {[%emt 0:00:04]} 5. d3 {[%emt 0:00:04]} d6 {[%emt 0:00:22]} 6. Nh3 {[%emt 0:02:36]} Nf6 {[%emt 0:00:34]} 7. O-O {[%emt 0:00:52]} O-O {[%emt 0:00:32]} 8. f4 {[%emt 0:00:36]} Nd4 {[%emt 0:02:27]} 9. Nf2 {[%emt 0:05:20]} Rb8 {[%emt 0:01:30]} 10. a4 {[%emt 0:06:19]} a6 {[%emt 0:03:01]} 11. Ne2 {[%emt 0:23:00]} Ne8 {[%emt 0:23:08]} 12. c3 {[%emt 0:00:52]} Nxe2+ {[%emt 0:04:53]} 13. Qxe2 {[%emt 0:00:02]} b5 {[%emt 0:00:15]} 14. g4 {[%emt 0:07:45]} Nc7 {[%emt 0:09:38]} 15. f5 {[%emt 0:15:00]} Bd7 {[%emt 0:15:43]} 16. axb5 {[%emt 0:03:46]} axb5 {[%emt 0:01:14]} 17. Nh3 {[%emt 0:01:50]} b4 {[%emt 0:03:33]} 18. c4 {[%emt 0:00:27]} Bc6 {[%emt 0:06:36]} 19. Qe1 {[%emt 0:06:43]} e6 {[%emt 0:09:42]} 20. f6 {[%emt 0:00:27]} Bxf6 {[%emt 0:00:58]} 21. Rxf6 {[%emt 0:00:03]} Qxf6 {[%emt 0:00:09]} 22. e5 {[%emt 0:00:49]} Qxe5 {[%emt 0:03:28]} 23. Qxe5 {[%emt 0:00:04]} dxe5 {[%emt 0:00:04]} 24. Bxc6 {[%emt 0:00:09]} Rb6 {[%emt 0:01:17]} 25. Bf3 {[%emt 0:05:17]} Rd8 {[%emt 0:03:26]} 26. Nf2 {[%emt 0:00:19]} Ra6 {[%emt 0:01:40]} 27. Rb1 {[%emt 0:00:19]} f5 {[%emt 0:00:49]} 28. Bg5 {[%emt 0:00:51]} Rd7 {[%emt 0:01:44]} 29. Bf6 {[%emt 0:00:50]} Ne8 {[%emt 0:03:57]} 30. Bxe5 {[%emt 0:00:08]} Nd6 {[%emt 0:00:41]} 31. Kg2 {[%emt 0:06:42]} Nf7 {[%emt 0:00:34]} 32. Bf6 {[%emt 0:00:06]} g5 {[%emt 0:01:59]} 33. Re1 {[%emt 0:02:24]} h6 {[%emt 0:00:37]} 34. Be5 {[%emt 0:04:20]} Kh7 {[%emt 0:00:16]} 35. gxf5 {[%emt 0:00:43]} exf5 {[%emt 0:00:04]} 36. Bd5 {[%emt 0:00:10]} Re7 {[%emt 0:01:14]} 37. Bxf7 {[%emt 0:00:45]} Rxf7 {[%emt 0:00:04]} 38. d4 {[%emt 0:00:01]} cxd4 {[%emt 0:00:16]} 39. Bxd4 {[%emt 0:00:01]} Rd7 {[%emt 0:00:33]} 40. Bc5 {[%emt 0:00:00]} b3 {[%emt 0:01:19]} 41. Ba3 {[%emt 0:07:47]} Ra4 {[%emt 0:10:36]} 42. Re5 {[%emt 0:14:26]} Rxc4 {[%emt 0:15:08]} 43. Rxf5 {[%emt 0:00:03]} Rd2 {[%emt 0:00:46]} 44. Kf3 {[%emt 0:08:25]} Rcc2 {[%emt 0:01:45]} 45. Ng4 {[%emt 0:00:53]} Kg6 {[%emt 0:04:14]} 46. Rf6+ {[%emt 0:00:11]} Kg7 {[%emt 0:00:11]} 47. Rxh6 {[%emt 0:05:43]} Rd4 {[%emt 0:01:02]} 48. Rb6 {[%emt 0:01:25]} Rf4+ {[%emt 0:00:04]} 49. Kg3 {[%emt 0:00:04]} Rc1 {[%emt 0:00:11]} 50. h3 {[%emt 0:01:59]} Rg1+ {[%emt 0:00:30]} 51. Kh2 {[%emt 0:00:03]} Rff1 {[%emt 0:00:11]} 52. Bc5 {[%emt 0:00:10]} Rh1+ {[%emt 0:00:08]} 53. Kg2 {[%emt 0:00:02]} Rb1 {[%emt 0:01:56]} 54. Bd4+ {[%emt 0:00:59]} Kf7 {[%emt 0:00:11]} 55. Rxb3 {[%emt 0:00:36]} Rhd1 {[%emt 0:00:06]} 56. Be3 {[%emt 0:00:26]} Re1 {[%emt 0:00:26]} 57. Bd4 {[%emt 0:01:04]} Red1 {[%emt 0:00:22]} 58. Rb4 {[%emt 0:00:37]} Rd2+ {[%emt 0:00:38]} 59. Nf2 {[%emt 0:00:08]} Kg6 {[%emt 0:00:15]} 60. Bc3 {[%emt 0:00:24]} Rc2 {[%emt 0:00:13]} 61. Ra4 {[%emt 0:00:34]} Kh5 {[%emt 0:00:29]} 62. Ra5 {[%emt 0:00:50]} Kg6 {[%emt 0:00:50]} 63. Ra6+ {[%emt 0:00:04]} Kh5 {[%emt 0:00:21]} 64. Bg7 {[%emt 0:00:22]} 1-0